Cogmind - Beta 9.5 @@@ ROGUE MODE // 2020.04.01 @ 17:38:14 // AFD2020/Player2 Player: Finestep Result: Core destroyed Performance ------------- Evolutions (0) 0 Regions Visited (1) 200 Robots Destroyed (12) 60 Value Destroyed (190) 190 Prototype IDs (2) 40 Alien Tech Used (0) 0 Bonus (-744) -744 TOTAL SCORE: -254 Bonus ------- High Alert Combat Kills 16 Follower Combat Kills 134 Friendly Fire -894 Cogmind --------- Core Integrity 0/250 Matter 280/300 Energy 242/250 System Corruption 0% Temperature Cool (0) Movement Rolling (150) Ox7 Location -10/Materials Parts ------- > --- POWER (1) -------- Ion Engine > --- PROPULSION (2) --- Light Treads Wheel > --- UTILITY (2) ------ High-capacity Storage Unit High-capacity Storage Unit > --- WEAPON (2) ------- Mining Claw Mining Claw > --- INVENTORY (20) --- Light Nuclear Core Light Treads Light Treads Wheel High-capacity Matter Pod (200) Light Armor Plating Light Armor Plating Hacking Suite EM Pulse Gun EM Pulse Gun Assault Rifle Mining Laser Peak State ------------ > --- POWER ------------ Light Ion Engine > --- PROPULSION ------- Light Treads Wheel > --- UTILITY ---------- High-capacity Storage Unit Improved Terrain Scanner > --- WEAPON ----------- Assault Rifle Light Assault Rifle > --- INVENTORY -------- Ion Engine Light Treads Wheel High-capacity Matter Pod Light Armor Plating Hacking Suite EM Pulse Gun Mining Laser [Rating: 9] Favorites ----------- Power Light Ion Engine Engine Light Ion Engine Propulsion Wheel Treads Light Treads Wheel Wheel Utility High-capacity Storage Unit Device Improved Terrain Scanner Storage High-capacity Storage Unit Weapon Assault Rifle Energy Gun EM Pulse Gun Ballistic Gun Assault Rifle Slashing Weapon Mining Claw Build | -11 -10 ------- Run | Scr Mat Slots Evolved . | . . Power . | . . Propulsion . | . . Utility . | . . Weapon . | . . Parts Attached 16 | 9 7 Power 2 | 1 1 Engine 2 | 1 1 Core . | . . Reactor . | . . Propulsion 4 | 3 1 Treads 2 | 1 1 Leg . | . . Wheel 2 | 2 . Hover . | . . Flight . | . . Utility 4 | 2 2 Device 1 | 1 . Storage 3 | 1 2 Processor . | . . Hackware . | . . Protection . | . . Artifact . | . . Weapon 6 | 3 3 Energy Gun 2 | 1 1 Energy Cannon . | . . Ballistic Gun 2 | 2 . Ballistic Cannon . | . . Launcher . | . . Special Weapon . | . . Impact Weapon . | . . Slashing Weapon 2 | . 2 Piercing Weapon . | . . Special Melee Weapon . | . . Unidentified Prototypes . | . . Parts Lost . | . . Power . | . . Propulsion . | . . Utility . | . . Weapon . | . . Highest Loss Streak . | . . Average Slot Usage (%) 100 | . 100 Engine 14 | . 14 Treads 14 | . 14 Wheel 14 | . 14 Device 10 | . 10 Storage 17 | . 17 Energy Gun 3 | . 3 Ballistic Gun 23 | . 23 Naked Turns . | . . Heaviest Build 73 | 11 73 Greatest Support 10 | 10 10 Greatest Overweight (x) 7 | 1 7 Average Overweight (x) 3 | . 3 Largest Inventory Capacity 20 | 6 20 Average Capacity 12 | 5 12 Most Carried 12 | 5 12 Average Carried 8 | 3 9 Final Capacity 20 | 6 20 Final Carried 12 | 5 12 Class Distribution -------------------- 71% | Mutant 28% | Hauler-Mutant Dominant Class ---------------- Mutant | -10/Materials Resources | -11 -10 ----------- Run | Scr Mat Matter Collected 757 | 215 542 Remotely . | . . Salvage Created 457 | 83 374 Parts 27 | 5 22 Haulers Intercepted 2 | . 2 Recyclers Shooed 1 | . 1 Parts Field Recycled . | . . Retrieved Matter . | . . Parts Self-Destructed . | . . Prevented . | . . Kills | -11 -10 ------- Run | Scr Mat Combat Hostiles Destroyed 5 | . 5 Guns 5 | . 5 Classes Destroyed 7 | 2 5 Builder 1 | . 1 Tunneler 1 | 1 . Hauler 2 | . 2 Recycler 2 | 1 1 Operator 1 | . 1 Swarmer 1 | . 1 Grunt 4 | . 4 Best Kill Streak 4 | 2 4 Combat Bots Only 2 | . 2 Max Kills in Single Turn 1 | 1 1 Gunslinging . | . . Exploded . | . . Melee . | . . Uniques/NPCs Destroyed . | . . Combat | -11 -10 -------- Run | Scr Mat Damage Taken 382 | . 382 Core 70 | . 70 Absorbed by Shields . | . . Core Remaining (%) 100 | 100 . Volleys Fired 57 | 7 50 Largest 2 | 2 2 Hottest 60 | 60 60 Shots Fired 112 | 14 98 Gun 112 | 14 98 Cannon . | . . Launcher . | . . Special . | . . Kinetic 103 | 9 94 Thermal . | . . Explosive . | . . Electromagnetic 9 | 5 4 Robot Hit Streak 6 | 4 6 Robot Miss Streak 7 | 2 7 Penetration Max . | . . Secondary Targets 1 | . 1 Max Gunslinging Chain 1 | . 1 Shots Hit Robots 61 | 8 53 Core Hits 30 | 4 26 Critical Hits . | . . Critical Kills . | . . Critical Parts Destroyed . | . . Melee Attacks 4 | . 4 Impact . | . . Slashing 4 | . 4 Piercing . | . . Sneak Attacks 4 | . 4 Combat Hostiles . | . . Follow-up Attacks 1 | . 1 Damage Inflicted 967 | 97 870 Guns 691 | 97 594 Cannons . | . . Explosions . | . . Melee 276 | . 276 Ramming . | . . Kinetic 665 | 84 581 Thermal . | . . Explosive . | . . Electromagnetic 26 | 13 13 Impact . | . . Slashing 276 | . 276 Piercing . | . . Highest Corruption . | . . Average Corruption . | . . Corruption Purged . | . . Overload Shots . | . . Overflow Damage 71 | . 71 Projectiles . | . . Explosions . | . . Melee 71 | . 71 Knockbacks . | . . Impact . | . . Kinetic . | . . Secondary . | . . Self-Inflicted Damage . | . . Shots . | . . Rammed . | . . Targets Rammed . | . . Kicked . | . . Crushed . | . . Highest Temperature 15 | . 15 Average Temperature 7 | . 7 Received Heat Transfer 105 | . 105 Siege Activations . | . . Robots Corrupted . | . . Combat Hostiles . | . . Parts Fried . | . . Impact Corruptions . | . . Robots Melted . | . . Combat Hostiles . | . . Parts Melted . | . . Heat Transferred . | . . Parts Sabotaged . | . . Parts Stolen . | . . Parts Stripped . | . . Power Chain Reactions . | . . Missiles Intercepted . | . . Alert | -11 -10 ------- Run | Scr Mat Peak Influence 532 | 10 532 Average Influence 259 | 3 288 Maximum Alert Level 2 | . 2 Low Security (%) 27 | 100 19 Level 1 63 | . 70 Level 2 9 | . 10 Level 3 . | . . Level 4 . | . . Level 5 . | . . High Security . | . . Max Security . | . . Squads Dispatched 4 | . 4 Investigation . | . . Extermination . | . . Reinforcement 4 | . 4 Assault . | . . Garrison . | . . Intercept . | . . Construction Impeded . | . . Haulers Reinforced . | . . Stealth | -11 -10 --------- Run | Scr Mat Distress Signals 2 | . 2 Communications Jammed . | . . Distress Signals . | . . Times Spotted 20 | . 20 Peak Tracking Total 5 | . 5 Tactical Retreats . | . . Traps | -11 -10 ------- Run | Scr Mat Traps Triggered . | . . Indirectly . | . . Trap Hack Attempts . | . . Triggered . | . . Disarmed . | . . Reprogrammed . | . . Reused . | . . Traps Extracted . | . . Installed . | . . Triggered . | . . Machines | -11 -10 ---------- Run | Scr Mat Machines Disabled . | . . Max in Single Turn . | . . Machines Sabotaged . | . . Garrisons Compromised . | . . Overloaded Fab Kills . | . . Fab Network Shutdowns . | . . Hacking | -11 -10 --------- Run | Scr Mat Machines Accessed 4 | . 4 Terminals 4 | . 4 Fabricators . | . . Repair Stations . | . . Recycling Units . | . . Scanalyzers . | . . Garrison Access . | . . Total Hacks 18 | . 18 Successful 12 | . 12 Failed 6 | . 6 Catastrophic . | . . Database Lockouts . | . . Manual 16 | . 16 Terminals 18 | . 18 Fabricators . | . . Repair Stations . | . . Recycling Units . | . . Scanalyzers . | . . Garrison Access . | . . Terminal Hacks 9 | . 9 Part Schematic 1 | . 1 Robot Schematic 2 | . 2 Robot Analysis 3 | . 3 Prototype ID Bank 1 | . 1 Hauler Manifests 1 | . 1 Zone Layout 1 | . 1 Fabricator Hacks . | . . Repair Station Hacks . | . . Recycling Unit Hacks . | . . Scanalyzer . | . . Garrison Access Hacks . | . . Unauthorized Hacks 7 | . 7 Terminals 3 | . 3 Botnet 3 | . 3 Fabricators . | . . Repair Stations . | . . Recycling Units . | . . Scanalyzers . | . . Garrison Access . | . . Data Cores Recovered 1 | . 1 Used 1 | . 1 Hacking Detections 2 | . 2 Full Trace Events . | . . Feedback Events . | . . Feedback Blocked . | . . Robot Schematics Acquired 2 | . 2 Robots Built . | . . Matter . | . . Time . | . . Total Robot Build Rating . | . . Part Schematics Acquired 1 | . 1 Parts Built . | . . Matter . | . . Time . | . . Total Part Build Rating . | . . Parts Repaired . | . . Time . | . . Parts Recycled . | . . Recycled Matter . | . . Retrieved Matter . | . . Retrieved Components . | . . Parts Scanalyzed . | . . Part Schematics Acquired . | . . Parts Damaged . | . . Bothacking | -11 -10 ------------ Run | Scr Mat Used RIF Installer . | . . Robots Hacked . | . . Non-combat . | . . Combat . | . . Robot Hacks Applied . | . . Relay Couplers Released . | . . Robots Rewired . | . . Allies Hacked . | . . Hacks Repelled . | . . Allies | -11 -10 -------- Run | Scr Mat Total Allies 1 | . 1 Largest Group 1 | . 1 Highest-Rated Group 59 | . 59 Highest-Rated Ally 59 | . 59 Total Orders . | . . Ally Attacks 41 | . 41 Total Damage 630 | . 630 Kills 14 | . 14 Allies Corrupted . | . . Allies Melted . | . . Intel | -11 -10 ------- Run | Scr Mat Robot Analysis Total 3 | . 3 Derelict Logs Recovered . | . . Drone Launches . | . . Drone Recoveries . | . . Exploration | -11 -10 ------------- Run | Scr Mat Turns Passed 686 | 70 616 Spaces Moved 418 | 41 377 Core 5 | 5 . Treads . | . . Legs . | . . Wheels 413 | 36 377 Hover . | . . Flight . | . . Fastest Speed 50 | 50 90 Average Speed 112 | 77 116 Slowest Speed 150 | 90 150 Overloaded Moves . | . . Propulsion Burnouts . | . . Robots Hopped . | . . Cave-ins Triggered . | . . Exploration Rate (%) 38 | 3 74 Regions Visited 1 Branch Regions . Pre-discovered Areas . | . . Known Exits Taken . | . . Unknown Exits Taken 1 | 1 . Scrap Searched . | . . Spaces Dug . | . . Terrain Destroyed . | . . Melee . | . . Projectile . | . . AOE . | . . Actions | -11 -10 --------- Run | Scr Mat Total 523 | 62 461 Wait 11 | . 11 Move 417 | 40 377 Hop . | . . Pick Up 12 | 4 8 Fast Attach 10 | 8 2 Attach 2 | 1 1 Detach 2 | 2 . Swap 4 | . 4 Drop 5 | . 5 Fire 57 | 7 50 Melee 3 | . 3 Ram . | . . Kick . | . . Crush . | . . Escape Stasis . | . . Rewire . | . . Trap . | . . Miscellaneous . | . . Route ------- -11/Scrapyard -10/Materials (discovered 3 exits: [*Mat x2] / [*Min]) History --------- Turn | Location | Event 23 | -11/Scrapyard | Discovered new exit (range 15) 71 | -11/Scrapyard | Entered Materials 215 | -10/Materials | Discovered new exit (range 13) 286 | -10/Materials | Discovered new exit (range 9) 304 | -10/Materials | Build established: Mutant 452 | -10/Materials | Core integrity fell below 50% 573 | -10/Materials | Discovered new exit (range 7) 687 | -10/Materials | Core destroyed Last Messages --------------- 00644_ R-06 Scavenger collects Aluminum Leg. 00650_ Acquired 23 matter. 00650_ O-16 Technician: "IFF HANDSHAKE FAILED. SECURING TERMINAL." 00655_ R-06 Scavenger collects Ion Engine. 00660_ A-02 Transporter destroyed. 00661_ R-06 Scavenger collects Med. Storage Unit. 00664_ ALERT: Hostiles spotted, dispatching reinforcements to Terminal M007. 00665_ R-06 Scavenger destroyed. 00675_ Acquired 37 matter. 00681_ Sneak attack on Player 2. 00684_ U-05 Engineer lays Concrete. 00684_ Sneak attack on Player 2. 00684_ Destroyed Lgt. Assault Rifle. 00684_ Destroyed Sml. Laser. 00684_ Destroyed Hover Unit. 00684_ Player 2 attaches Hover Unit. 00685_ Player 2 attaches Beam Cannon. 00687_ Sneak attack on Player 2. 00687_ Mining Claw follow-up attack on Player 2. Map ----- +----------------------------------------------------+ | ???????????????????????????????????????? | | ????????????? ?????????????????????????? | | ????????????? ?????????????????????????? | | ????????????# ?????????????????????????? | | ????????????# ????????????????????????? | | ????????????# ?????????????????????????? | | ????????????# ###?????? ????????????? ?? | | ????? ??????# #??????????????#???????? | | ????????????+ #??????????????????????? | | ???????? ? ?# #???""??????R??????????? | | ????????? ??# #???"?????????????? ???? | | ????????????# #???""??#??????????????? | | ????????????# ###????????????????????? | | ????#?##????# #??????#???????????????? | | ????????????# #????????????????????? ? | | ???##? ???? # ###########?#??????????? | | ????????"?? # * # = #??#?#?????????# | | ????????"???+ + !!! ##???#???####### | | ???????""???# #!! !! #????????# | | ????????????# =!#########????????# | | ???????????## ! ##?????#?????#???# / | | ???????????# !!!################# | | ?#??#? #???#! *%! k | | ??#?????#??# !!= ########### | | ???????????# ! u #?????#???# | | ??????????##=!*@@#########???#????# | | ??###########=%%##???#??#????#????# | | ??# #!!!#?????????#####?### ## | | ??? #! =#?????????#??????# "" | | ?????"" """ + =%#???????????#????# | | ?????"" """ #= *##???#???????????# ! | | ????"?" ""??#= ###########?#????# < " | | ?#???? ?? #* # #??????# ! | | ????????????#u # """" ##?????# | | ?????????? ?# # """" #??????# "" | | ????????????# # """" #########* %## | | ??????####### + ! ## ! # ## | | ??#??? # # ! ## + | | ??????""" # # "T" [ ## "" # | | ???? """"" # # """ ## "T # | | ?????""""" #g ############ "" ## ### | | ???# """"" # # ??# ## #?? | | ???# """ # # """ ""? ?######### #?? | | ???# + + """ ""???#???????#+### | | ???# # # """ ""???????????# | | ???# # # #?????#??# """ | | ???####+##### # #?????#??# """ | | ?????# #?## # #????????# """ | | ?????# #??# # #???#????# | | ?????# #??# ###########???#????# [! | +----------------------------------------------------+ Best States ------------- Heat Dissipation 25 Energy Generation 10 Energy Capacity 250 Matter Stores 300 Matter Capacity 300 Sight Range 16 Terrain Scan Range 16 Terrain Scan Density 10 Evasion (%) 44 Recoil Reduction 1 Item Schematics ----------------- Lrg. Storage Unit | -10/Materials | Hacked Robot Schematics ------------------ O-16 Technician | -10/Materials | Hacked M-13 Machinist | -10/Materials | Hacked Fabricated ------------ Nothing Alien Tech Used ----------------- None Achievements -------------- None Challenges ------------ None Game ------ Seed DeuteriumRecyclingWheel Manual? 0 Play Time 00:11:50 Cumulative 366.3 hours Start 2020.04.01 @ 17:31:46 End 2020.04.01 @ 17:38:14 Sessions 1 Manual Loads 0 Difficulty Rogue Special Mode AFD2020/Player2 Game No. 256 Rogue 256 Adventurer 0 Explorer 0 Win Type - Total 4 Types 4/0/0/0/0/0/0 Lore% 81 Gallery% 84 Achievement% 63 Wizard Run 0 Options --------- ASCII 0 Keyboard 0 Movement Mouse Keybinds 1 Fullscreen 2 Font 24/Smallcaps Map View 76x50 Tactical HUD 1 Map Filters NONE Filters NONE Steam 1 RUN: 19d71f2f-7754-4ac7-923a-359132d04013